Cogmind - Beta 17 @@@ ROGUE MODE // 2026.07.04 @ 13:36:33 Player: Bikerider58 Result: Destroyed by G-34 Mercenary with Small Laser Performance ------------- Evolutions (1) 500 Regions Visited (2) 400 Robots Destroyed (45) 225 Value Destroyed (1304) 1304 Prototype IDs (4) 80 Alien Tech Used (0) 0 Bonus (7588) 7588 TOTAL SCORE: 10097 Bonus ------- High Alert Combat Kills 63 Follower Combat Kills 75 Prayed to X0-1V1 5000 Major X0-1V1 Interference 2450 Cogmind --------- Core Integrity 0/260 Matter 826/900 Energy 219/265 System Corruption 18% Temperature Cool (63) Movement Treading (320) Ox2 Location -9/Materials Parts ------- > --- POWER (1) -------- Improved Ion Engine > --- PROPULSION (3) --- Light Treads Light Treads > --- UTILITY (3) ------ Huge Storage Unit X0-1V1's Piety Tracker > --- WEAPON (2) ------- Heavy Assault Rifle Heavy Assault Rifle > --- INVENTORY (25) --- Light Ion Engine Light Treads Light Treads Light Treads Compact Wheel Heat Sink Medium Storage Unit Medium Matter Pod (100) Seismic Detector Seismic Detector Transport Network Coupler Light Armor Plating Light Armor Plating Light Armor Plating Trap Extractor (0/4) Improved EM Shotgun Improved EM Shotgun Shotgun Hammer Peak State ------------ > --- POWER ------------ Ion Engine > --- PROPULSION ------- Light Treads Light Treads Light Treads > --- UTILITY ---------- Cooling System Huge Storage Unit X0-1V1's Piety Tracker > --- WEAPON ----------- Improved EM Shotgun Improved EM Shotgun Medium Laser Assault Rifle Light Assault Rifle > --- INVENTORY -------- Light Ion Engine Light Treads Light Treads Light Treads Light Treads Light Treads Light Treads Improved Treads Wheel Compact Wheel Medium Storage Unit Medium Matter Pod Seismic Detector Seismic Detector Transport Network Coupler Light Armor Plating Light Armor Plating Trap Extractor Improved EM Shotgun Improved EM Shotgun Heavy Assault Rifle Heavy Assault Rifle Shotgun [Rating: 32] Favorites ----------- Power Ion Engine Engine Ion Engine Propulsion Light Treads Treads Light Treads Wheel Compact Wheel Utility Seismic Detector Device Seismic Detector Storage Medium Storage Unit Weapon Medium Laser Energy Gun Medium Laser Ballistic Gun Light Assault Rifle Build | -11 -10 -9 ------- Run | Yrd Mat Mat Slots Evolved 2 | . . 2 Power . | . . . Propulsion 1 | . . 1 Utility 1 | . . 1 Weapon . | . . . Parts Attached 33 | 7 5 21 Power 5 | 1 1 3 Engine 5 | 1 1 3 Core . | . . . Reactor . | . . . Propulsion 12 | 2 . 10 Treads 8 | 2 . 6 Leg . | . . . Wheel 4 | . . 4 Hover . | . . . Flight . | . . . Utility 8 | 2 2 4 Device 5 | 1 1 3 Storage 3 | 1 1 1 Processor . | . . . Hackware . | . . . Protection . | . . . Artifact . | . . . Weapon 8 | 2 2 4 Energy Gun 4 | 1 1 2 Energy Cannon . | . . . Ballistic Gun 4 | 1 1 2 Ballistic Cannon . | . . . Launcher . | . . . Special Weapon . | . . . Impact Weapon . | . . . Slashing Weapon . | . . . Piercing Weapon . | . . . Special Melee Weapon . | . . . Unidentified Prototypes 2 | . . 2 Parts Lost 11 | . . 11 Power 1 | . . 1 Propulsion 3 | . . 3 Utility 2 | . . 2 Weapon 5 | . . 5 Highest Loss Streak 3 | . . 3 To Critical Strikes . | . . . Average Backups 12 | . 8 19 Power . | . 1 . Propulsion 4 | . 2 7 Utility 4 | . 3 7 Weapon 2 | . 1 4 Tool/Special . | . . . Unused Backups 13 | . 1 12 Power . | . . . Propulsion 2 | . . 2 Utility 8 | . 1 7 Weapon 3 | . . 3 Tool/Special . | . . . Average Slot Usage (%) 96 | . 96 95 Engine 11 | . 12 9 Treads 20 | . 25 13 Wheel 6 | . . 15 Device 15 | . 12 18 Storage 11 | . 12 9 Energy Gun 14 | . 15 12 Ballistic Gun 15 | . 15 14 Peak Build Rating 32 | 7 11 32 Average Rating 15 | 5 8 26 On Entrance 6 | . 7 11 Avg Prop Armor Cover (%) 9 | . . 9 Naked Turns . | . . . Heaviest Build 98 | 12 23 98 Greatest Support 60 | 40 40 60 Greatest Overweight (x) 3 | . . 3 Average Overweight (x) 1 | . . 2 Largest Inventory Capacity 25 | 8 10 25 Average Capacity 15 | 7 9 25 Most Carried 25 | 1 10 25 Average Carried 12 | . 8 19 Final Capacity 25 | 8 10 25 Final Carried 19 | 1 10 19 Class Distribution -------------------- 55% | Mutant 15% | Gunner 15% | Scavenger-Gunner 12% | Scavenger-Mutant Dominant Class ---------------- Mutant | -10/Materials Scavenger-Gunner | -9/Materials Resources | -11 -10 -9 ----------- Run | Yrd Mat Mat Matter Collected 1626 | 285 654 687 Remotely . | . . . Salvage Created 1852 | 109 591 1152 Parts 109 | 6 42 61 Haulers Intercepted 3 | . 2 1 Recyclers Shooed . | . . . Parts Field Recycled . | . . . Retrieved Matter . | . . . Parts Self-Destructed . | . . . Prevented . | . . . Parts Restored . | . . . Kills | -11 -10 -9 ------- Run | Yrd Mat Mat Combat Hostiles Destroyed 30 | . 11 19 Guns 29 | . 11 18 AOE 1 | . . 1 Classes Destroyed 10 | 2 6 2 Worker 2 | . 1 1 Tunneler 4 | 3 1 . Hauler 3 | . 2 1 Recycler 3 | 1 1 1 Operator 1 | . 1 . Watcher 2 | . 1 1 Swarmer 3 | . 3 . Grunt 15 | . 8 7 Sentry 8 | . . 8 Hunter 4 | . . 4 Best Kill Streak 10 | 2 2 10 Combat Bots Only 9 | . 2 9 Max Kills in Single Turn 2 | 1 2 1 Gunslinging 1 | . 1 . Exploded 1 | . . 1 Melee . | . . . Uniques/NPCs Destroyed . | . . . Combat | -11 -10 -9 -------- Run | Yrd Mat Mat Hostile Shots Fired 195 | . 37 158 Missed 54 | . 11 43 Hits 141 | . 26 115 Projectile 141 | . 26 115 Critical Strikes 1 | . . 1 Damage Taken 1794 | . 331 1463 Core 272 | . 12 260 Absorbed by Shields . | . . . Core Remaining (%) 100 | 100 100 . Volleys Fired 129 | 15 47 67 Largest 5 | 2 4 5 Hottest 180 | 70 140 180 Shots Fired 279 | 30 113 136 Gun 279 | 30 113 136 Cannon . | . . . Launcher . | . . . Special . | . . . Kinetic 152 | 15 56 81 Thermal 83 | 15 57 11 Explosive . | . . . Electromagnetic 44 | . . 44 Robot Hit Streak 23 | 7 13 23 Robot Miss Streak 4 | 1 4 3 Penetration Max . | . . . Secondary Targets 4 | . 1 3 Max Gunslinging Chain 1 | . 1 1 Shots Hit Robots 207 | 20 73 114 Core Hits 95 | 5 37 53 Critical Kills . | . . . Critical Parts Destroyed . | . . . Critical Strikes 7 | . 6 1 Burn 7 | . 6 1 Melee Attacks . | . . . Impact . | . . . Slashing . | . . . Piercing . | . . . Sneak Attacks . | . . . Combat Hostiles . | . . . Follow-up Attacks . | . . . Damage Inflicted 3001 | 208 813 1980 Guns 2681 | 208 778 1695 Cannons . | . . . Explosions 266 | . . 266 Melee . | . . . Ramming 54 | . 35 19 Kinetic 1248 | 80 340 828 Thermal 943 | 128 438 377 Explosive . | . . . Electromagnetic 756 | . . 756 Impact . | . . . Slashing . | . . . Piercing . | . . . Highest Corruption 18 | . . 18 Average Corruption 7 | . . 7 Corruption Purged . | . . . Corruption Blocked . | . . . Effects 16 | . . 16 Message Errors 4 | . . 4 Matter Fused 4 | . . 4 Heat Flow Errors 1 | . . 1 Energy Discharges 2 | . . 2 Parts Rejected 2 | . . 2 Data Loss (minor) 1 | . . 1 Data Loss (major) 1 | . . 1 Weapon Failures 1 | . . 1 Overload Shots . | . . . Overflow Damage 3 | . . 3 Projectiles . | . . . Explosions 3 | . . 3 Melee . | . . . Knockbacks . | . . . Impact . | . . . Kinetic . | . . . Secondary . | . . . Self-Inflicted Damage 92 | . . 92 Shots 2 | . . 2 Rammed 5 | . 4 1 Targets Rammed 6 | . 4 2 Kicked . | . . . Crushed 1 | . . 1 Highest Temperature 292 | 100 292 267 Average Temperature 66 | 38 69 77 Received Heat Transfer 663 | . 165 498 Effects 1 | . . 1 Interference 1 | . . 1 Siege Activations . | . . . Martial Activations . | . . . Shielding Activations . | . . . Robots Disrupted . | . . . Combat Hostiles . | . . . Robots Corrupted . | . . . Combat Hostiles . | . . . Parts Fried 3 | . . 3 Impact Corruptions . | . . . Robots Melted . | . . . Combat Hostiles . | . . . Parts Melted 5 | 1 4 . Heat Transferred 2866 | 370 1739 757 Parts Sabotaged . | . . . Parts Stolen . | . . . Parts Stripped . | . . . Power Chain Reactions 4 | . . 4 Alert | -11 -10 -9 ------- Run | Yrd Mat Mat Maximum Alert Level 2 | . . 2 Low Security (%) 77 | 100 100 41 Level 1 11 | . . 29 Level 2 11 | . . 28 Level 3 . | . . . Level 4 . | . . . Level 5 . | . . . High Security . | . . . Max Security . | . . . Peak Influence 500 | 5 103 500 Initial 9 | . . 9 Average 113 | 1 30 252 Influence Increases 1255 | 20 366 869 Destroy 0b10 Robot/C 660 | . 220 440 Destroy 0b10 Robot/NC 85 | 20 35 30 Destroy Leader 154 | . 66 88 Allied During Kill 16 | . . 16 Select Force Hacks 30 | . 30 . Disable Machine 45 | . . 45 Destroy Structure 34 | . . 34 Lose Combat Pursuer 15 | . 15 . Miscellaneous 216 | . . 216 Influence Decreases 783 | 20 344 419 Entered New Map 13 | . . 13 Time Decay 670 | 20 344 306 Lost Part 100 | . . 100 Squads Dispatched 7 | . 3 4 Investigation 5 | . 2 3 Extermination . | . . . Reinforcement 2 | . 1 1 Assault . | . . . Garrison . | . . . Intercept . | . . . Searches Triggered . | . . . Construction Impeded . | . . . Haulers Reinforced . | . . . Active Scanning Responses . | . . . Cargo Convoy Interrupts . | . . . Stealth | -11 -10 -9 --------- Run | Yrd Mat Mat Distress Signals 13 | . 4 9 Communications Jammed . | . . . Distress Signals . | . . . Times Spotted 57 | . 20 37 Peak Tracking Total 6 | . 3 6 Tactical Retreats 1 | . 1 . Traps | -11 -10 -9 ------- Run | Yrd Mat Mat Traps Triggered 3 | . 3 . Indirectly . | . . . Trap Hack Attempts . | . . . Triggered . | . . . Disarmed . | . . . Reprogrammed . | . . . Reused . | . . . Traps Extracted . | . . . Installed . | . . . Triggered . | . . . Machines | -11 -10 -9 ---------- Run | Yrd Mat Mat Machines Disabled 3 | . . 3 Max in Single Turn 1 | . . 1 Machines Repaired . | . . . Machines Dismantled . | . . . Machines Sabotaged . | . . . Overloaded Fab Kills . | . . . Hacking | -11 -10 -9 --------- Run | Yrd Mat Mat Machines Accessed 11 | . 5 6 Terminals 9 | . 3 6 Fabricators . | . . . Repair Stations 1 | . 1 . Recycling Units 1 | . 1 . Scanalyzers . | . . . Garrison Access . | . . . Total Hacks 24 | . 11 13 Successful 3 | . 3 . Failed 21 | . 8 13 Catastrophic 9 | . 1 8 Database Lockouts . | . . . Manual 18 | . 6 12 Terminals 21 | . 8 13 Fabricators . | . . . Repair Stations 2 | . 2 . Recycling Units 1 | . 1 . Scanalyzers . | . . . Garrison Access . | . . . Terminal Hacks 2 | . 2 . Robot Analysis 1 | . 1 . Prototype ID Bank 1 | . 1 . Fabricator Hacks . | . . . Repair Station Hacks . | . . . Recycling Unit Hacks . | . . . Scanalyzer . | . . . Garrison Access Hacks . | . . . Unauthorized Hacks 1 | . 1 . Terminals . | . . . Fabricators . | . . . Repair Stations . | . . . Recycling Units 1 | . 1 . Tunnel 1 | . 1 . Scanalyzers . | . . . Garrison Access . | . . . Data Cores Recovered . | . . . Used . | . . . Hacking Detections 9 | . 3 6 Full Trace Events 2 | . . 2 Feedback Events . | . . . Feedback Blocked . | . . . Robot Schematics Acquired . | . . . Robots Built . | . . . Authchips . | . . . Time . | . . . Total Robot Build Rating . | . . . Part Schematics Acquired . | . . . Parts Built . | . . . Authchips . | . . . Time . | . . . Total Part Build Rating . | . . . Part Studies Acquired . | . . . Parts Repaired . | . . . Time . | . . . Parts Recycled . | . . . Recycled Matter . | . . . Retrieved Matter . | . . . Retrieved Components . | . . . Parts Scanalyzed . | . . . Part Schematics Acquired . | . . . Parts Damaged . | . . . Bothacking | -11 -10 -9 ------------ Run | Yrd Mat Mat Used RIF Installer . | . . . Robots Hacked . | . . . Non-combat . | . . . Combat . | . . . Robot Hacks Applied . | . . . Relay Couplers Released . | . . . Fabnet Peak Effective % . | . . . Robots Rewired . | . . . Allies Hacked . | . . . Hacks Repelled . | . . . Allies | -11 -10 -9 -------- Run | Yrd Mat Mat Total Allies 1 | . . 1 Largest Group 1 | . . 1 Highest-Rated Group 85 | . . 85 Highest-Rated Ally 85 | . . 85 Total Orders . | . . . Ally Attacks 8 | . . 8 Total Damage 314 | . . 314 Kills 5 | . . 5 Allies Corrupted . | . . . Allies Melted . | . . . X0-1V1 Amusement Gains 94 | . 4 90 Good Acts 16 | . 7 9 Bad Acts 17 | . 1 16 Intel | -11 -10 -9 ------- Run | Yrd Mat Mat Active Infowar (turns) 1462 | 29 1120 313 Seismic 1462 | 29 1120 313 Robot Analysis Total 1 | . 1 . Derelict Logs Recovered . | . . . Drone Launches . | . . . Drone Recoveries . | . . . Exploration | -11 -10 -9 ------------- Run | Yrd Mat Mat Turns Passed 2066 | 154 1120 792 Spaces Moved 888 | 63 489 336 Core 3 | 3 . . Treads 567 | 60 489 18 Legs . | . . . Wheels 318 | . . 318 Hover . | . . . Flight . | . . . Fastest Speed 50 | 50 160 123 Average Speed 152 | 154 160 139 Slowest Speed 240 | 160 160 240 Overloaded Moves . | . . . Propulsion Burnouts . | . . . Robots Hopped . | . . . Potential Cave-ins . | . . . Cave-ins Triggered . | . . . Exploration Rate (%) 43 | 4 80 47 Regions Visited 2 Branch Regions . Pre-discovered Areas 1 | . 1 . Known Exits Taken . | . . . Unknown Exits Taken 2 | 1 1 . Scrap Searched . | . . . Spaces Dug . | . . . Terrain Destroyed 22 | . . 22 Melee . | . . . Projectile . | . . . AOE 22 | . . 22 Terrain Rammed . | . . . Walls Destroyed . | . . . Machines Disabled . | . . . Actions | -11 -10 -9 --------- Run | Yrd Mat Mat Total 1347 | 89 734 524 Wait 233 | 4 166 63 Move 886 | 62 488 336 Hop . | . . . Pick Up 38 | 1 14 23 Fast Attach 16 | 7 4 5 Attach 13 | . 2 11 Detach . | . . . Swap 17 | . 4 13 Drop 8 | . 5 3 Fire 129 | 15 47 67 Melee . | . . . Ram 2 | . . 2 Kick . | . . . Crush 5 | . 4 1 Escape Stasis . | . . . Rewire . | . . . Trap . | . . . Miscellaneous . | . . . Route ------- -11/Scrapyard -10/Materials (discovered 5 exits: *Mat x2 / [*Min x2] / [*Sub]) -9/Materials (discovered 3 exits: [*Mat] / Min x2) History --------- Turn | Location | Event 25 | -11/Scrapyard | Discovered new exit (range 15) 155 | -11/Scrapyard | Entered Materials 226 | -10/Materials | Discovered new exit (range 16) 308 | -10/Materials | Build established: Mutant 425 | -10/Materials | Discovered new exit (range 10) 521 | -10/Materials | Discovered new exit (range 8) 621 | -10/Materials | Discovered new exit (range 3) 751 | -10/Materials | Discovered new exit (range 9) 778 | -10/Materials | Prayed at D.C.S.S. Altar Unit 942 | -10/Materials | Weapon slot count temporarily expanded by X0-1V1 (+3) 947 | -10/Materials | Melee accuracy permanently improved by X0-1V1 (+7%; -70 max core) 1238 | -10/Materials | Build established: Gunner 1275 | -10/Materials | Entered another Materials area 1275 | -9/Materials | Evolved 2 slots: Propulsion x1, Utility x1 1328 | -9/Materials | X0-1V1 activates XOMVISION 1338 | -9/Materials | X0-1V1 whisked you away to safety 1347 | -9/Materials | Ranged accuracy permanently improved by X0-1V1 (+7%; -70 max core) 1410 | -9/Materials | Identified exit to Mines 1410 | -9/Materials | X0-1V1 revealed exit location to -9/Mines 1498 | -9/Materials | X0-1V1 added 0b10 threat records associated with you (considerable) 1507 | -9/Materials | X0-1V1 revealed exit location to -9/Mines 1551 | -9/Materials | X0-1V1 enhanced Transport squad support 1576 | -9/Materials | Build established: Scavenger-Gunner 1635 | -9/Materials | X0-1V1 sent allied B-75 Beast (x1) 1727 | -9/Materials | Lost 3 parts (1p1n1w) 1728 | -9/Materials | Destroyed 9 combat bots 1757 | -9/Materials | Discovered new exit (range 6) 1768 | -9/Materials | Core integrity fell below 50% 1890 | -9/Materials | System corruption reached 10% 2022 | -9/Materials | X0-1V1 sent hostile G-34 Mercenary (x5) 2050 | -9/Materials | Core integrity fell below 20% 2067 | -9/Materials | Destroyed by G-34 Mercenary with Small Laser Last Messages --------------- 02047_ R-06 Scavenger collects Aluminum Leg. 02047_ K-01 Serf collects debris. 02053_ Cooling System destroyed. 02053_ Acquired 31 matter. 02053_ Movement behavior is fully back under control. 02057_ R-06 Scavenger suffers critical hit (Burn). 02059_ K-01 Serf collects debris. 02060_ Critical hit (Burn: +37). 02061_ X0-1V1: "I find this area lacking in decorations." Y-45 Defender shuts down. 02062_ K-01 Serf collects debris. 02063_ Lgt. Treads destroyed. 02064_ System corrupted: Hvy. Assault Rifle jammed. 02065_ K-01 Serf collects debris. 02066_ System corrupted: Energy discharge (-58). 02067_ X0-1V1 laughs nastily! Map ----- +----------------------------------------------------+ | ???????????????????????????????????????????????? | | ???????????????????????????????????????????????? | | ???????????????????????????????????########????? | | ???????????????????????????????????# ????? | | ???????????????????????????????????? ?### | | ????????????????????????????????????? ?# | | ??????????????????????????????????????"""""" # | | ?????????????????????????????????????""""""" # | | ??????????????????????? ????????????""""""" + | | ??????????????????????# ????????????""""""" # | | ??????????????>???????# ?????????????"""""" # | | ??????????????????????# ?????????????######?# | | ??????????????????????# Y#??????????????????# | | ????????????? ???????# #??????????????????# | | ????????????# ??????# #??????????????????# " | | ????????????? ####### #??????????????????# | | ????????????? #??????????????????# | | ?????????????? !#??????????????????### | | ??????????????? #????????????????????# | | ?????????????? #################????# | | ????????????# ""T"" #????# | | ????????????# """"" #????# | | ????????????# k " """ #????# | | ????????????# * T """ #????# | | ???????????# ######g## " """ #????? | | ??????????????????# " g@g# """ #????? | | ??????????????????# # ####?? | | ??????????????????# # ? | | ??????????????????# g # """ ?? | | ??????????????????##+##### """ ??? | | ??????????????????? ????# ! """ #+#######??? | | ???????????????# # %% # ?????? | | ???????????????# / == % % # ""??""??? | | ???????????????# # !! % % #] ""??""??? | | ???????????????# """ """ # ## "???""??? | | ???????????????# """ """?######### ## ???? ??? | | ???????????????#???? ""??#[ ## #%########+#### | | ????????????????????? ??# #### * | | ?????????????????????????# +[[ % | | ???????#?????????????????# #*= [ !!! | | ???????# ????????????????# !#[= * ***= | | ???????# """" #??????????# !#[###%#####%*= | | ???????# """" #??????????# #=###+######* | | ???????# #??????????# # #=*%% #** | | ???????#== #??????????## ### #!""" #** | | ???????# #?????########### # "T" # | | ???????# #?????# " # # | | ???????# % ####### + # + | | ???????####+### # ### """ # | | ???????#=*= % " #?# """ # | +----------------------------------------------------+ Best States ------------- Heat Dissipation 50 Energy Generation 12 Energy Capacity 265 Matter Stores 900 Matter Capacity 900 Sight Range 21 Terrain Scan Density 10 Evasion (%) 40 Recoil Reduction 3 Item Schematics ----------------- None Robot Schematics ------------------ None Fabricated ------------ Nothing Repaired ---------- Nothing Studied --------- None Alien Tech Used ----------------- None Achievements -------------- None Challenges ------------ None Game ------ Seed ScimitarDecoderDoublenader Manual? 0 Play Time 00:21:11 Cumulative 304.3 hours Start 2026.07.04 @ 13:17:08 End 2026.07.04 @ 13:36:33 Sessions 1 Manual Loads 0 Difficulty Rogue Special Mode None Game No. 122 Rogue 117 Adventurer 5 Explorer 0 Win Type - Total 8 Types 4/0/2/1/0/0/0/0/0/1 Lore% 74 Gallery% 71 Achievement% 65 Wizard Run 0 Options --------- Layout 1 ASCII 0 Keyboard 0 Movement Numpad Keybinds 0 Fullscreen 1 Font 24/Smallcaps Map View 50x35 Zoom Use 0% Tactical HUD 1 Map Filters NONE Filters NONE Steam 1 RUN: c4c4df1b-b728-4368-ab11-ea94e7b6b0e0